fUSD/lending_fUSD_20260516
["ID","MTS","AMOUNT","RATE_DAILY","PERIOD"]
[422391497,1778921438000,-500.0,0.00014999,2]
[422391492,1778921438000,-500.0,0.00014999,2]
[422391493,1778921438000,-500.0,0.00014999,2]
[422391494,1778921438000,-500.0,0.00014999,2]
[422391498,1778921438000,-357.78683898,0.00014999,2]
[422391535,1778921438000,-500.0,0.00014999,2]
[422391605,1778921438000,-1123572.18123154,0.00015,2]
[422391533,1778921438000,-500.0,0.00014999,2]
[422391566,1778921438000,-832.0,0.00015,5]
[422391585,1778921438000,-698.47,0.00015,2]
[422391583,1778921438000,-150.0,0.00015,2]
[422391581,1778921438000,-150.0,0.00015,2]
[422391571,1778921438000,-150.0,0.00015,2]
[422391587,1778921438000,-194.569,0.00015,2]
[422391597,1778921438000,-1000.0,0.00015,2]
[422391599,1778921438000,-1000.0,0.00015,2]
[422391601,1778921438000,-1142.6090675,0.00015,2]
[422391589,1778921438000,-250.0,0.00015,2]
[422391591,1778921438000,-242.055,0.00015,2]
[422391593,1778921438000,-185.0,0.00015,2]
[422391595,1778921438000,-243.621,0.00015,2]
[422391608,1778921438000,-2410336.1317495,0.00015,2]
[422391536,1778921438000,-500.0,0.00014999,2]
[422391579,1778921438000,-244.325,0.00015,2]
[422391577,1778921438000,-205.313,0.00015,2]
[422391603,1778921438000,-343.1,0.00015,2]
[422391575,1778921438000,-809615.58276059,0.00015,2]
[422391549,1778921438000,-1872.07836152,0.00014999,2]
[422391551,1778921438000,-910.78222874,0.00014999,2]
[422391553,1778921438000,-485.47662152,0.00014999,2]
[422391539,1778921438000,-500.0,0.00014999,2]
[422391568,1778921438000,-665.0,0.00015,5]
[422391555,1778921438000,-300.0,0.00014999,2]
[422391537,1778921438000,-500.0,0.00014999,2]
[422391541,1778921438000,-500.0,0.00014999,2]
[422391534,1778921438000,-500.0,0.00014999,2]
[422391547,1778921438000,-166626.958062,0.00014999,2]
[422391559,1778921438000,-300.0,0.00014999,2]
[422391557,1778921438000,-300.0,0.00014999,2]
[422391543,1778921438000,-434.29862304,0.00014999,2]
[422391562,1778921438000,-671.07197812,0.00014999,2]
[422391564,1778921438000,-300.0,0.00014999,2]
[422391573,1778921438000,-150.0,0.00015,2]
[422391545,1778921438000,-7855.9703459,0.00014999,2]
[422391642,1778921440000,-69234.91747912,0.00015,2]
[422391656,1778921442000,-2768.20406109,0.00015,2]
[422391655,1778921442000,-1174378.82988359,0.00015,2]
[422391654,1778921442000,-1161926.23049204,0.00015,2]
[422391651,1778921442000,-283.69048162,0.00014844,2]
[422391653,1778921442000,-4.94473311,0.00014844,2]
[422391652,1778921442000,-502.16,0.00014844,2]
[422391657,1778921443000,-296.82102635,0.00015,2]
[422391660,1778921445000,-94065.74283794,0.00015,2]
[422391658,1778921445000,-790.79521473,0.00014856,2]
[422391659,1778921445000,-5521.14804365,0.00015,2]
[422391662,1778921446000,-4323.45116007,0.00015,2]
[422391661,1778921446000,-4066.4259084,0.00015,2]
[422391672,1778921453000,152.0,8.733e-05,2]
[422391673,1778921455000,156.87,0.00015,120]
[422391676,1778921491000,214.0,0.00030137,120]
[422391675,1778921491000,198.982831,0.00027397,120]
[422391677,1778921491000,156.0,0.00030137,120]
[422391679,1778921491000,200.0,0.00030137,120]
[422391680,1778921491000,1076.0,0.00027397,120]
[422391678,1778921491000,172.45350599,0.00027397,120]
[422391682,1778921520000,205.04,0.000301,120]
[422391684,1778921644000,631.65,0.00015,120]
[422391685,1778921703000,255.26,0.0003013,120]
[422391686,1778921708000,1215.0,0.00028774,120]
[422391687,1778921728000,292.0,0.00029184,120]
[422391688,1778921749000,1063.0,0.000301,120]
[422391692,1778921795000,303.28,0.00030137,120]
[422391694,1778921834000,568.49,0.00015,120]
[422391695,1778921909000,1786.19,0.00030137,120]
[422391696,1778921969000,500.0,0.00029994,120]
[422391697,1778921970000,693.221,0.00029994,120]
[422391698,1778922002000,400.0,0.00030136,120]
[422391700,1778922003000,382.97,0.00029452,120]
[422391699,1778922003000,400.0,0.00030136,120]
[422391701,1778922004000,344.84986101,0.00030136,120]
[422391702,1778922007000,729.0,0.00029843,120]
[422391707,1778922018000,-164.43,0.00013548,2]
[422391705,1778922018000,-172.18,0.00011515,2]
[422391706,1778922018000,-250.0,0.00012667,2]
[422391704,1778922018000,-250.0,0.00011515,2]
[422391703,1778922018000,-163.39,0.00011515,2]
[422391709,1778922020000,-35.57,0.00013548,2]
[422391708,1778922020000,-1000.0,0.00013548,2]
[422391711,1778922020000,-1000.0,0.00013549,2]
[422391710,1778922020000,-964.43,0.00013549,2]
[422391712,1778922021000,-1000.0,0.00013549,2]
[422391714,1778922022000,-1000.0,0.00013549,2]
[422391717,1778922022000,-1000.0,0.00013549,2]
[422391716,1778922022000,-1000.0,0.00013549,2]
[422391715,1778922022000,-1000.0,0.00013549,2]
[422391713,1778922022000,-1000.0,0.00013549,2]
[422391721,1778922023000,-1000.0,0.00013549,2]
[422391720,1778922023000,511.64,0.00015,120]
[422391719,1778922023000,-1000.0,0.00013549,2]
[422391718,1778922023000,-1000.0,0.00013549,2]
[422391723,1778922024000,-1000.0,0.00013549,2]
[422391722,1778922024000,-1000.0,0.00013549,2]
[422391724,1778922025000,-1000.0,0.00013549,2]
[422391727,1778922025000,-1000.0,0.00013549,2]
[422391726,1778922025000,-1000.0,0.00013549,2]
[422391725,1778922025000,-1000.0,0.00013549,2]
[422391729,1778922026000,-1000.0,0.00013549,2]
[422391728,1778922026000,-1000.0,0.00013549,2]
[422391732,1778922027000,-1000.0,0.00013549,2]
[422391731,1778922027000,-1000.0,0.00013549,2]
[422391730,1778922027000,-1000.0,0.00013549,2]
[422391736,1778922028000,-1000.0,0.00013549,2]
[422391735,1778922028000,-1000.0,0.00013549,2]
[422391734,1778922028000,-1000.0,0.00013549,2]
[422391733,1778922028000,500.0,0.0002972,120]
[422391737,1778922029000,-1000.0,0.00013549,2]
[422391738,1778922029000,-1000.0,0.00013549,2]
[422391740,1778922029000,-1000.0,0.00013549,2]
[422391739,1778922029000,500.0,0.00029446,120]
[422391743,1778922030000,500.0,0.00029446,120]
[422391741,1778922030000,500.0,0.00029446,120]
[422391744,1778922030000,-1000.0,0.00013549,2]
[422391742,1778922030000,-1000.0,0.00013549,2]
[422391746,1778922031000,-1000.0,0.00013549,2]
[422391745,1778922031000,-1000.0,0.00013549,2]
[422391747,1778922032000,-1000.0,0.00013549,2]
[422391751,1778922033000,500.0,0.00029172,120]
[422391749,1778922033000,-1000.0,0.00013549,2]
[422391750,1778922033000,500.0,0.00029172,120]
[422391748,1778922033000,163.0,0.00030104,120]
[422391754,1778922038000,-1000.0,0.00013549,2]
[422391753,1778922038000,-1000.0,0.00013549,2]
[422391752,1778922038000,-1000.0,0.00013549,2]
[422391755,1778922039000,-1000.0,0.00013549,2]
[422391757,1778922039000,-559.42,0.00013955,2]
[422391759,1778922039000,-107.6138,0.00014,2]
[422391756,1778922039000,-108.8262,0.00013549,2]
[422391762,1778922039000,-150.0,0.00014047,2]
[422391761,1778922039000,-500.0,0.00014,2]
[422391763,1778922039000,-207.6138,0.0001422,2]
[422391760,1778922039000,-142.3862,0.00014,2]
[422391758,1778922039000,-224.14,0.00013978,2]
[422391772,1778922040000,-485.0138,0.00014497,2]
[422391771,1778922040000,-200.0,0.000144,5]
[422391769,1778922040000,-152.0,0.00014396,7]
[422391770,1778922040000,-152.0,0.00014396,7]
[422391768,1778922040000,-10.9862,0.00014368,7]
[422391766,1778922040000,-440.42,0.00014357,2]
[422391765,1778922040000,-164.73,0.00014247,2]
[422391767,1778922040000,-141.0138,0.00014368,7]
[422391764,1778922040000,-253.8362,0.0001422,2]
[422391774,1778922041000,-265.3438,0.000145,5]
[422391773,1778922041000,-734.6562,0.00014497,2]
[422391775,1778922041000,-134.6562,0.000145,5]
[422391776,1778922041000,-700.0,0.000146,5]
[422391778,1778922041000,-2.6562,0.0001468,2]
[422391779,1778922041000,-997.3438,0.000147,2]
[422391777,1778922041000,-165.3438,0.0001468,2]
[422391783,1778922042000,-444.55353785,0.00014712,2]
[422391782,1778922042000,-555.44646215,0.000147,5]
[422391780,1778922042000,-655.44646215,0.000147,2]
[422391781,1778922042000,-344.55353785,0.000147,5]
[422391788,1778922043000,-1000.0,0.00014778,2]
[422391787,1778922043000,-1000.0,0.00014778,2]
[422391786,1778922043000,-794.55353785,0.00014778,2]
[422391785,1778922043000,-150.0,0.00014777,2]
[422391784,1778922043000,-55.44646215,0.00014712,2]
[422391790,1778922044000,-1000.0,0.000147,2]
[422391789,1778922044000,-1000.0,0.00014778,2]
[422391791,1778922045000,-320.34232882,0.000147,2]
[422391792,1778922045000,-679.65767118,0.00014778,2]
[422391794,1778922045000,-1000.0,0.00014778,2]
[422391793,1778922045000,-1000.0,0.00014778,2]
[422391797,1778922046000,-1000.0,0.00014778,2]
[422391796,1778922046000,-1000.0,0.00014778,2]
[422391795,1778922046000,-1000.0,0.00014778,2]
[422391799,1778922047000,-1000.0,0.00014778,2]
[422391798,1778922047000,-1000.0,0.00014778,2]
[422391800,1778922048000,-1000.0,0.00014778,2]
[422391802,1778922048000,-1000.0,0.00014778,2]
[422391801,1778922048000,-1000.0,0.00014778,2]
[422391808,1778922049000,-315.40279869,0.000148,5]
[422391807,1778922049000,-392.8054,0.000148,2]
[422391806,1778922049000,-219.10812446,0.000148,2]
[422391805,1778922049000,-72.68367685,0.00014778,2]
[422391804,1778922049000,-453.10511412,0.00014778,2]
[422391803,1778922049000,-546.89488588,0.000147,2]
[422391810,1778922050000,-115.40279869,0.00014855,2]
[422391809,1778922050000,-884.59720131,0.000148,5]
[422391812,1778922050000,-1000.0,0.00014855,2]
[422391811,1778922050000,-1000.0,0.00014855,2]
[422391814,1778922051000,-1000.0,0.00014855,2]
[422391813,1778922051000,-1000.0,0.00014855,2]
[422391818,1778922052000,-1000.0,0.00014878,2]
[422391817,1778922052000,-61.40279869,0.00014878,2]
[422391816,1778922052000,-938.59720131,0.00014855,2]
[422391815,1778922052000,-1000.0,0.00014855,2]
[422391819,1778922053000,-1000.0,0.00014878,2]
[422391821,1778922053000,-635.40340941,0.00014878,2]
[422391820,1778922053000,-364.59659059,0.000147,2]
[422391822,1778922054000,-1000.0,0.00014878,2]
[422391824,1778922055000,-827.72323107,0.00014878,2]
[422391823,1778922055000,-172.27676893,0.00014855,2]
[422391828,1778922056000,-1000.0,0.00014878,2]
[422391827,1778922056000,-74.0,0.00014878,2]
[422391826,1778922056000,-926.0,0.00014855,2]
[422391825,1778922056000,-1000.0,0.00014878,2]
[422391829,1778922057000,-1000.0,0.00014878,2]
[422391831,1778922057000,-930.0,0.00014855,2]
[422391830,1778922057000,-1000.0,0.00014878,2]
[422391832,1778922057000,-70.0,0.00014878,2]
[422391836,1778922058000,-827.72323107,0.00014878,2]
[422391835,1778922058000,-172.27676893,0.00014855,2]
[422391833,1778922058000,-357.91557301,0.00014855,2]
[422391834,1778922058000,-642.08442699,0.00014878,2]
[422391839,1778922059000,-1000.0,0.00014878,2]
[422391838,1778922059000,-1000.0,0.00014878,2]
[422391837,1778922059000,-1000.0,0.00014878,2]
[422391844,1778922060000,-287.50026253,0.0001488,2]
[422391843,1778922060000,-500.0,0.00014879,2]
[422391842,1778922060000,-212.49973747,0.00014879,2]
[422391841,1778922060000,-287.50026253,0.00014879,2]
[422391840,1778922060000,-712.49973747,0.00014878,2]
[422391847,1778922061000,-500.0,0.0001488,2]
[422391846,1778922061000,-212.49973747,0.0001488,2]
[422391845,1778922061000,-234.15637029,0.00014855,2]
[422391848,1778922061000,-53.34389224,0.0001488,2]
[422391853,1778922061000,-500.0,0.00014899,2]
[422391849,1778922061000,-446.65610776,0.0001488,2]
[422391851,1778922061000,-53.34389224,0.0001488,2]
[422391852,1778922061000,-146.65610776,0.0001488,2]
[422391854,1778922061000,-353.34389224,0.00014899,2]
[422391850,1778922061000,-500.0,0.0001488,2]
[422391863,1778922062000,-353.34389224,0.00014899,2]
[422391861,1778922062000,-146.65610776,0.00014899,2]
[422391862,1778922062000,-500.0,0.00014899,2]
[422391860,1778922062000,-353.34389224,0.00014899,2]
[422391858,1778922062000,-146.65610776,0.00014899,2]
[422391859,1778922062000,-500.0,0.00014899,2]
[422391856,1778922062000,-500.0,0.00014899,2]
[422391857,1778922062000,-353.34389224,0.00014899,2]
[422391855,1778922062000,-146.65610776,0.00014899,2]
[422391864,1778922063000,-1000.0,0.00014878,2]
[422391865,1778922063000,-1000.0,0.00014878,2]
[422391867,1778922063000,-500.0,0.00014879,2]
[422391866,1778922063000,-500.0,0.00014878,2]
[422391868,1778922064000,-1000.0,0.00014879,2]
[422391872,1778922065000,-500.0,0.00014879,2]
[422391871,1778922065000,-1000.0,0.00014879,2]
[422391870,1778922065000,-1000.0,0.00014879,2]
[422391869,1778922065000,-1000.0,0.00014879,2]
[422391879,1778922066000,-500.0,0.00014899,2]
[422391880,1778922066000,-353.34389224,0.00014899,2]
[422391878,1778922066000,-146.65610776,0.00014899,2]
[422391877,1778922066000,-353.34389224,0.00014899,2]
[422391875,1778922066000,-146.65610776,0.00014899,2]
[422391876,1778922066000,-500.0,0.00014899,2]
[422391874,1778922066000,-353.34389224,0.00014899,2]
[422391873,1778922066000,-146.65610776,0.00014899,2]
[422391881,1778922067000,-148.29538898,0.00014899,2]
[422391882,1778922067000,-851.70461102,0.000149,2]
[422391883,1778922067000,-1000.0,0.000149,2]
[422391884,1778922068000,-1000.0,0.000149,2]
[422391886,1778922068000,-1000.0,0.000149,2]
[422391885,1778922068000,-1000.0,0.000149,2]
[422391887,1778922069000,-148.29538898,0.000149,2]
[422391888,1778922069000,-200.0,0.000149,5]
[422391891,1778922069000,-120.81681764,0.00014903,2]
[422391890,1778922069000,-879.18318236,0.000149,2]
[422391889,1778922069000,-651.70461102,0.000149,2]
[422391897,1778922070000,-499.73373033,0.00014903,2]
[422391895,1778922070000,-1000.0,0.00014903,2]
[422391894,1778922070000,-58.91691269,0.00014903,2]
[422391893,1778922070000,-681.25159707,0.000149,2]
[422391892,1778922070000,-259.83149024,0.000149,2]
[422391896,1778922070000,-500.26626967,0.00014903,2]
[422391901,1778922071000,-1000.0,0.00014952,2]
[422391900,1778922071000,-558.65064302,0.00014952,2]
[422391898,1778922071000,-181.51786674,0.00014903,2]
[422391899,1778922071000,-259.83149024,0.00014903,2]
[422391902,1778922072000,-1000.0,0.00014952,2]
[422391904,1778922072000,-1000.0,0.00014952,2]
[422391903,1778922072000,-1000.0,0.00014952,2]
[422391909,1778922073000,-417.0,0.00014988,2]
[422391908,1778922073000,-308.47735698,0.00014988,2]
[422391907,1778922073000,-447.65064302,0.00014988,2]
[422391906,1778922073000,-552.34935698,0.00014952,2]
[422391905,1778922073000,-1000.0,0.00014952,2]
[422391910,1778922073000,-151.0,0.00014997,2]
[422391911,1778922074000,-123.52264302,0.00014997,2]
[422391917,1778922074000,-372.91081906,0.00014999,2]
[422391916,1778922074000,-627.08918094,0.00014999,2]
[422391915,1778922074000,-31.43955568,0.00014999,2]
[422391913,1778922074000,-681.25159708,0.00014952,2]
[422391914,1778922074000,-27.47735698,0.00014997,2]
[422391912,1778922074000,-259.83149026,0.00014952,2]
[422391919,1778922075000,-500.0,0.00014999,2]
[422391918,1778922075000,-127.08918094,0.00014999,2]
[422391920,1778922075000,-372.91081906,0.00014999,2]
[422391933,1778922076000,-126.69087098,0.00014999,2]
[422391921,1778922076000,-127.08918094,0.00014999,2]
[422391923,1778922076000,-372.91081906,0.00014999,2]
[422391922,1778922076000,-500.0,0.00014999,2]
[422391924,1778922076000,-127.08918094,0.00014999,2]
[422391925,1778922076000,-500.0,0.00014999,2]
[422391926,1778922076000,-186.64364503,0.00014999,2]
[422391929,1778922076000,-500.0,0.00014999,2]
[422391928,1778922076000,-313.73282597,0.00014999,2]
[422391930,1778922076000,-186.26717403,0.00014999,2]
[422391931,1778922076000,-373.30912902,0.00014999,2]
[422391932,1778922076000,-500.0,0.00014999,2]
[422391927,1778922076000,-186.26717403,0.00014999,2]
[422391936,1778922077000,-126.69087098,0.00014999,2]
[422391934,1778922077000,-373.30912902,0.00014999,2]
[422391935,1778922077000,-500.0,0.00014999,2]
[422391938,1778922077000,-379.2085462,0.00014999,2]
[422391940,1778922077000,-37.57377109,0.00014999,2]
[422391939,1778922077000,-247.48232478,0.00014999,2]
[422391941,1778922077000,-500.0,0.00014999,2]
[422391942,1778922077000,-462.42622891,0.00014999,2]
[422391937,1778922077000,-373.30912902,0.00014999,2]
[422391948,1778922078000,-500.0,0.00014999,2]
[422391949,1778922078000,-192.66045532,0.00014999,2]
[422391947,1778922078000,-268.16435443,0.00014999,2]
[422391946,1778922078000,-39.17519025,0.00014999,2]
[422391945,1778922078000,-462.42622891,0.00014999,2]
[422391944,1778922078000,-500.0,0.00014999,2]
[422391943,1778922078000,-37.57377109,0.00014999,2]
[422391950,1778922079000,-307.33954468,0.00014999,2]
[422391952,1778922079000,-192.66045532,0.00014999,2]
[422391951,1778922079000,-500.0,0.00014999,2]
[422391955,1778922079000,-192.66045532,0.00014999,2]
[422391954,1778922079000,-500.0,0.00014999,2]
[422391957,1778922079000,-500.0,0.00014999,2]
[422391953,1778922079000,-307.33954468,0.00014999,2]
[422391956,1778922079000,-307.33954468,0.00014999,2]
[422391958,1778922079000,-192.66045532,0.00014999,2]
[422391966,1778922080000,-500.0,0.00014999,2]
[422391965,1778922080000,-307.33954468,0.00014999,2]
[422391963,1778922080000,-500.0,0.00014999,2]
[422391964,1778922080000,-192.66045532,0.00014999,2]
[422391962,1778922080000,-307.33954468,0.00014999,2]
[422391960,1778922080000,-500.0,0.00014999,2]
[422391961,1778922080000,-192.66045532,0.00014999,2]
[422391959,1778922080000,-307.33954468,0.00014999,2]
[422391968,1778922081000,-307.33954468,0.00014999,2]
[422391970,1778922081000,-192.66045532,0.00014999,2]
[422391967,1778922081000,-192.66045532,0.00014999,2]
[422391973,1778922081000,-192.66045532,0.00014999,2]
[422391971,1778922081000,-307.33954468,0.00014999,2]
[422391969,1778922081000,-500.0,0.00014999,2]
[422391972,1778922081000,-500.0,0.00014999,2]
[422391981,1778922082000,-500.0,0.00014999,2]
[422391980,1778922082000,-307.33954468,0.00014999,2]
[422391979,1778922082000,-192.66045532,0.00014999,2]
[422391978,1778922082000,-500.0,0.00014999,2]
[422391977,1778922082000,-307.33954468,0.00014999,2]
[422391976,1778922082000,-192.66045532,0.00014999,2]
[422391975,1778922082000,-500.0,0.00014999,2]
[422391974,1778922082000,-307.33954468,0.00014999,2]
[422391984,1778922083000,-1000.0,0.000149,2]
[422391983,1778922083000,-1000.0,0.000149,2]
[422391982,1778922083000,-192.66045532,0.00014999,2]
[422391986,1778922085000,-953.97607365,0.000149,2]
[422391987,1778922085000,-46.02392635,0.00014999,2]
[422391985,1778922085000,-1000.0,0.000149,2]
[422391988,1778922086000,-261.31561833,0.00014999,2]
[422391990,1778922086000,-500.0,0.00014999,2]
[422391991,1778922086000,-64.30544305,0.00014999,2]
[422391989,1778922086000,-174.37893862,0.00014999,2]
[422391993,1778922087000,-424.32534492,0.00014999,2]
[422391992,1778922087000,-575.67465508,0.00014999,2]
[422391994,1778922087000,-75.67465508,0.00014999,2]
[422391996,1778922087000,-424.32534492,0.00014999,2]
[422391995,1778922087000,-500.0,0.00014999,2]
[422391999,1778922087000,-424.32534492,0.00014999,2]
[422391997,1778922087000,-75.67465508,0.00014999,2]
[422392001,1778922087000,-500.0,0.00014999,2]
[422392000,1778922087000,-75.67465508,0.00014999,2]
[422392002,1778922087000,-424.32534492,0.00014999,2]
[422391998,1778922087000,-500.0,0.00014999,2]
[422392003,1778922089000,-75.67465508,0.00014999,2]
[422392005,1778922089000,-424.32534492,0.00014999,2]
[422392004,1778922089000,-500.0,0.00014999,2]
[422392006,1778922090000,-75.67465508,0.00014999,2]
[422392007,1778922090000,-500.0,0.00014999,2]
[422392010,1778922090000,-500.0,0.00014999,2]
[422392009,1778922090000,-75.67465508,0.00014999,2]
[422392008,1778922090000,-424.32534492,0.00014999,2]
[422392013,1778922091000,-500.0,0.00014999,2]
[422392014,1778922091000,-424.32534492,0.00014999,2]
[422392012,1778922091000,-75.67465508,0.00014999,2]
[422392011,1778922091000,-424.32534492,0.00014999,2]
[422392016,1778922092000,-500.0,0.00014999,2]
[422392017,1778922092000,-462.66249202,0.00014999,2]
[422392015,1778922092000,-37.33750798,0.00014999,2]
[422392020,1778922093000,-462.66249202,0.00014999,2]
[422392018,1778922093000,-37.33750798,0.00014999,2]
[422392019,1778922093000,-500.0,0.00014999,2]
[422392021,1778922102000,-966.0,0.00013713,2]
[422392022,1778922119000,340.45213001,0.0002,120]
[422392023,1778922159000,191.52390893,0.0003,120]
[422392024,1778922170000,222.85954617,0.0003,120]
[422392025,1778922198000,500.0,0.00024982,120]
[422392027,1778922199000,500.0,0.00027441,120]
[422392026,1778922199000,500.0,0.00026025,120]
[422392028,1778922199000,500.0,0.00028858,120]
[422392029,1778922209000,403.0,0.00029987,120]
[422392030,1778922212000,460.47,0.00015,120]
[422392033,1778922221000,167.17642832,0.000226,120]
[422392035,1778922265000,516.72219492,0.0003,120]
[422392036,1778922272000,3186.92918626,0.00030137,120]
[422392037,1778922279000,222.76619276,0.0003,120]
[422392038,1778922285000,385.21754492,0.00028297,120]
[422392039,1778922308000,632.0,0.0002896,120]
[422392040,1778922314000,695.31243451,0.0003013,120]
[422392041,1778922315000,176.64587548,0.000274,120]
[422392042,1778922325000,317.55980219,0.00030135,120]
[422392043,1778922325000,166.0,0.0003,120]
[422392044,1778922327000,224.28211238,0.00025,120]
[422392045,1778922328000,866.87442577,0.0003,120]
[422392046,1778922328000,271.59054646,0.0003013,120]
[422392047,1778922329000,169.75623251,0.0003,120]
[422392048,1778922330000,167.68672492,0.0003,120]
[422392051,1778922331000,1055.18833196,0.0002,120]
[422392050,1778922331000,209.46087877,0.0002,120]
[422392049,1778922331000,155.62772436,0.0002,120]
[422392052,1778922332000,368.29241137,0.000226,120]
[422392053,1778922333000,158.0,0.00029307,120]
[422392054,1778922336000,313.43715882,0.00027,120]
[422392055,1778922337000,310.4153953,0.000301,120]
[422392057,1778922338000,756.2518449,0.000271,120]
[422392056,1778922338000,807.09435227,0.00027,120]
[422392060,1778922402000,414.43,0.00015,120]
[422392061,1778922404000,808.96,0.000301,120]
[422392065,1778922547000,227.73430904,0.00025988,120]
[422392064,1778922547000,466.18,0.00027417,120]
[422392070,1778922592000,372.98,0.00015,120]
[422392071,1778922610000,544.0,0.00028183,120]
[422392072,1778922611000,544.0,0.00029592,120]
[422392073,1778922627000,356.93033097,0.00026004,120]
[422392074,1778922629000,159.0,0.00028391,120]
[422392075,1778922630000,159.0,0.0002981,120]
[422392090,1778922631000,-2726.52883703,0.00014637,2]
[422392092,1778922631000,-1426.68504133,0.000147,2]
[422392091,1778922631000,-159.58234739,0.00014637,2]
[422392085,1778922631000,-345.89,0.000143,2]
[422392089,1778922631000,-2113.89881558,0.00014637,2]
[422392088,1778922631000,-1200.0,0.00014636,2]
[422392086,1778922631000,-190.46,0.000143,2]
[422392078,1778922631000,-250.0,0.00012383,2]
[422392082,1778922631000,-208.44072055,0.00013743,2]
[422392083,1778922631000,-466.18,0.00014102,2]
[422392080,1778922631000,-692.06995351,0.00013713,2]
[422392081,1778922631000,-341.93004649,0.00013713,2]
[422392079,1778922631000,-150.0,0.00013488,2]
[422392077,1778922631000,-175.05,0.00011258,2]
[422392093,1778922631000,-478.6087615,0.000147,2]
[422392084,1778922631000,-200.0,0.00014139,2]
[422392094,1778922631000,-122.77719717,0.000147,2]
[422392087,1778922631000,-152.0,0.00014377,7]
[422392097,1778922631000,-500.0,0.0001477,2]
[422392096,1778922631000,-500.0,0.0001477,2]
[422392113,1778922631000,-19443.326332,0.00014916,2]
[422392112,1778922631000,-500.33214469,0.00014915,2]
[422392111,1778922631000,-1509.0,0.000149,2]
[422392109,1778922631000,-720.6277,0.000149,2]
[422392110,1778922631000,-469.87571432,0.000149,2]
[422392107,1778922631000,-150.0,0.00014899,2]
[422392106,1778922631000,-200.0,0.0001488,2]
[422392105,1778922631000,-500.0,0.0001488,2]
[422392108,1778922631000,-5000.0,0.000149,2]
[422392101,1778922631000,-438.46364481,0.0001477,2]
[422392098,1778922631000,-500.0,0.0001477,2]
[422392103,1778922631000,-5000.01,0.00014832,2]
[422392099,1778922631000,-500.0,0.0001477,2]
[422392095,1778922631000,-167.677,0.000147,2]
[422392104,1778922631000,-2500.0,0.00014836,2]
[422392102,1778922631000,-1242.39477028,0.00014805,2]
[422392100,1778922631000,-500.0,0.0001477,2]
[422392115,1778922632000,-1646.08119907,0.00014916,2]
[422392114,1778922632000,-1865.97484225,0.00014916,2]
[422392126,1778922637000,-18143.3875156,0.00014916,2]
[422392171,1778922638000,-500.0,0.00014999,2]
[422392179,1778922638000,-500.0,0.00014999,2]
[422392168,1778922638000,-259.83149025,0.00014999,2]
[422392158,1778922638000,-500.0,0.00014999,2]
[422392170,1778922638000,-507.39599137,0.00014999,2]
[422392163,1778922638000,-500.0,0.00014999,2]
[422392165,1778922638000,-500.0,0.00014999,2]
[422392160,1778922638000,-500.0,0.00014999,2]
[422392164,1778922638000,-500.0,0.00014999,2]
[422392167,1778922638000,-621.13564933,0.00014999,2]
[422392169,1778922638000,-340.62579853,0.00014999,2]
[422392194,1778922638000,-500.0,0.00014999,2]
[422392177,1778922638000,-187.7150481,0.00014999,2]
[422392181,1778922638000,-500.0,0.00014999,2]
[422392174,1778922638000,-401.12099341,0.00014999,2]
[422392183,1778922638000,-441.70341214,0.00014999,2]
[422392187,1778922638000,-500.0,0.00014999,2]